bitfinex-derivatives/quotes_SOLF0:USTF0_20250626
["timestamp","ask_amount","ask_price","bid_price","bid_amount"]
[1750929025075,3.45285787,144.4,144.37,15.51457574]
[1750929025371,10.37455787,144.4,144.38,8.59187574]
[1750929025665,3.45285787,144.4,144.38,8.59187574]
[1750929026071,3.45285787,144.4,144.37,8.59187574]
[1750929026573,6.9221,144.39,144.37,8.59187574]
[1750929026771,3.45285787,144.4,144.37,8.59187574]
[1750929026973,634.028,144.45,144.38,8.59187574]
[1750929027164,3.45285787,144.42,144.38,8.59187574]
[1750929027672,3.45285787,144.42,144.4,8.59187574]
[1750929028472,6.9212,144.41,144.4,8.59187574]
[1750929028672,3.45285787,144.41,144.37,12.88781362]
[1750929029274,10.37405787,144.41,144.38,19.80991362]
[1750929029775,10.37405787,144.41,144.38,6.9221]
[1750929029776,6.9216,144.4,144.38,6.9221]
[1750929030673,3.45285787,144.39,144.36,12.88781362]
[1750929030873,3.45285787,144.39,144.37,12.88781362]
[1750929031078,3.45285787,144.39,144.38,6.20871382]
[1750929031377,6.9216,144.4,144.38,6.20871382]
[1750929031564,6.9216,144.4,144.39,6.20871382]
[1750929031764,10.37385787,144.41,144.39,6.20871382]
[1750929031968,10.37385787,144.41,144.4,6.20871382]
[1750929032164,10.37385787,144.41,144.4,14.82865263]
[1750929033471,10.37385787,144.41,144.4,6.20871382]
[1750929034874,10.37385787,144.41,144.4,14.82865263]
[1750929035978,6.921,144.41,144.4,6.20871382]
[1750929036184,6.921,144.41,144.4,14.82865263]
[1750929037078,6.9214,144.4,144.38,6.9222]
[1750929038884,6.9214,144.4,144.39,6.11683267]
[1750929039270,3.45285787,144.42,144.39,6.11683267]
[1750929039476,3.45285787,144.42,144.4,14.74353442]
[1750929039684,3.45285787,144.42,144.41,6.11683267]
[1750929039976,42.92,144.45,144.41,6.11683267]
[1750929040184,42.92,144.45,144.42,6.14806186]
[1750929040385,42.92,144.45,144.4,8.62670175]
[1750929040686,42.92,144.45,144.42,8.62670175]
[1750929040687,6.9202,144.43,144.42,8.62670175]
[1750929040883,6.9202,144.43,144.42,6.14805185]
[1750929042294,6.9202,144.43,144.42,14.77156045]
[1750929042788,6.9202,144.43,144.42,6.14805185]
[1750929044190,3.45285787,144.46,144.42,14.77156045]
[1750929044389,3.45285787,144.46,144.43,6.14805185]
[1750929044692,3.45285787,144.46,144.44,6.14805185]
[1750929044893,3.45285787,144.46,144.45,6.14805185]
[1750929045186,10.37165787,144.46,144.45,6.14805185]
[1750929045779,6.9198,144.44,144.4,51.5435086]
[1750929046088,3.45285787,144.43,144.4,51.5435086]
[1750929046286,3.45285787,144.43,144.4,42.92]
[1750929046486,6.9206,144.42,144.4,42.92]
[1750929046886,3.45285787,144.43,144.4,42.92]
[1750929047087,6.9207,144.42,144.39,8.6235086]
[1750929047288,3.45285787,144.43,144.39,8.6235086]
[1750929047889,10.37305787,144.43,144.4,6.9212]
[1750929048795,3.45285787,144.43,144.41,6.9209]
[1750929049091,3.45285787,144.45,144.39,8.6235086]
[1750929049292,10.37185787,144.45,144.44,6.46490563]
[1750929049494,3.45285787,144.45,144.43,6.46490563]
[1750929049689,3.45285787,144.45,144.44,6.46490563]
[1750929050094,10.37185787,144.45,144.44,6.46490563]
[1750929050297,10.37185787,144.45,144.41,8.6235086]
[1750929050298,3.45285787,144.45,144.41,8.6235086]
[1750929050791,3.45285787,144.43,144.41,8.6235086]
[1750929051298,6.9204,144.42,144.41,8.6235086]
[1750929051793,10.37305787,144.43,144.41,8.6235086]
[1750929052188,3.45285787,144.43,144.41,8.6235086]
[1750929052398,6.9204,144.42,144.41,8.6235086]
[1750929052801,3.45285787,144.43,144.39,19.8596302]
[1750929053294,6.9204,144.42,144.39,19.8596302]
[1750929054200,3.45285787,144.43,144.4,6.9211]
[1750929054802,6.9214,144.4,144.39,12.9380302]
[1750929055102,3.45285787,144.41,144.37,12.9380302]
[1750929055397,3.45205322,144.43,144.35,41.66]
[1750929055898,6.9205,144.42,144.39,6.9217]
[1750929056696,6.9211,144.41,144.38,6.9222]
[1750929057502,6.9216,144.4,144.37,19.85366341]
[1750929057699,6.9216,144.4,144.38,6.05036129]
[1750929057901,6.9216,144.4,144.39,6.05036129]
[1750929058502,6.9216,144.4,144.39,14.67211789]
[1750929059496,6.9216,144.4,144.39,6.05036129]
[1750929062192,45.11205322,144.41,144.39,14.67211789]
[1750929062493,10.37315322,144.41,144.4,6.05036129]
[1750929062892,10.37315322,144.41,144.38,6.9221]
[1750929063407,6.9215,144.4,144.37,6.9226]
[1750929063710,3.45137095,144.41,144.34,43.9061]
[1750929063901,6.9205,144.42,144.35,3.45137095]
[1750929064404,6.9205,144.42,144.39,6.9217]
[1750929064603,6.9205,144.42,144.41,8.620948]
[1750929064794,6.9205,144.42,144.41,6.22543365]
[1750929064998,6.9205,144.42,144.41,14.84638165]
[1750929065700,3.45137095,144.45,144.41,6.22543365]
[1750929065905,3.45137095,144.45,144.43,8.62107518]
[1750929066106,6.9193,144.45,144.44,6.22543365]
[1750929066303,6.9193,144.45,144.44,14.84650883]
[1750929066610,6.9188,144.46,144.44,14.84650883]
[1750929066810,3.45137095,144.47,144.45,6.22543365]
[1750929067010,3.45137095,144.47,144.46,6.22543365]
[1750929067201,10.36967095,144.47,144.46,6.22543365]
[1750929069810,6.9178,144.48,144.46,6.22543365]
[1750929070009,6.9178,144.48,144.47,14.83949698]
[1750929070212,6.9178,144.48,144.47,6.22543365]
[1750929070407,6.9178,144.48,144.47,14.83949698]
[1750929071209,10.36877095,144.49,144.47,14.83949698]
[1750929071410,10.36877095,144.49,144.48,6.22543365]
[1750929072811,10.36877095,144.49,144.48,12.67996237]
[1750929073414,10.36877095,144.49,144.48,6.22543365]
[1750929073601,10.36877095,144.49,144.48,12.67996237]
[1750929073803,6.9174,144.49,144.48,12.67996237]
[1750929074003,10.36877095,144.49,144.48,12.67996237]
[1750929074811,10.36877095,144.49,144.48,3.365e-05]
[1750929075014,6.919,144.45,144.42,41.64]
[1750929076616,6.919,144.45,144.42,50.24346602]
[1750929076808,3.45137095,144.45,144.42,50.24346602]
[1750929077114,3.45137095,144.43,144.4,8.60346602]
[1750929077417,6.9207,144.42,144.4,8.60346602]
[1750929077816,3.45137095,144.43,144.4,8.60346602]
[1750929078602,3.45137095,144.41,144.39,8.60346602]
[1750929078810,3.45137095,144.41,144.4,6.45593997]
[1750929079014,6.9224,144.38,144.37,8.60346602]
[1750929079216,6.9224,144.38,144.36,8.60346602]
[1750929079410,6.9222,144.39,144.36,8.60346602]
[1750929079604,3.45137095,144.39,144.36,8.60346602]
[1750929080313,10.37327095,144.39,144.36,15.52666602]
[1750929080514,3.45137095,144.39,144.36,8.60346602]
[1750929080818,10.37347095,144.39,144.36,8.60346602]
[1750929081209,6.9225,144.38,144.36,8.60346602]
[1750929081619,3.45137095,144.39,144.36,8.60346602]
[1750929081916,3.45137095,144.37,144.33,8.60346602]
[1750929082116,3.45137095,144.37,144.32,10.91126602]
[1750929082320,3.45137095,144.35,144.32,10.91126602]
[1750929082514,3.45137095,144.35,144.32,2.3078]
[1750929082714,10.37537095,144.35,144.32,10.91126602]
[1750929083017,3.45137095,144.35,144.32,10.91126602]
[1750929083813,10.37447095,144.37,144.33,15.52796602]
[1750929084005,3.45137095,144.37,144.33,8.60346602]
[1750929084407,3.45137095,144.37,144.36,6.9233]
[1750929084613,3.45137095,144.4,144.36,6.9233]
[1750929086014,10.37317095,144.4,144.36,6.9233]
[1750929086210,3.45137095,144.4,144.36,6.9233]
[1750929086816,6.9219,144.39,144.37,6.12928131]
[1750929087012,6.9219,144.39,144.38,6.12928131]
[1750929087207,3.45137095,144.39,144.38,6.12928131]
[1750929088809,3.45137095,144.4,144.38,6.12928131]
[1750929089006,40.3,144.42,144.32,18.66436999]
[1750929089007,43.75137095,144.42,144.35,40.32]
[1750929089211,3.45137095,144.42,144.39,6.9215]
[1750929089515,10.37217095,144.42,144.36,4.6016]
[1750929089716,10.37217095,144.42,144.39,6.9218]
[1750929090521,10.37217095,144.42,144.4,6.10882898]
[1750929090823,10.37217095,144.42,144.41,6.10882898]
[1750929091518,3.45137095,144.42,144.41,6.10882898]
[1750929091726,43.77137095,144.45,144.41,6.10882898]
[1750929091915,43.77137095,144.45,144.42,6.10882898]
[1750929092220,3.45137095,144.45,144.43,6.10882898]
[1750929092422,6.9196,144.44,144.41,6.9207]
[1750929092616,6.9196,144.44,144.42,6.10816168]
[1750929092917,6.9196,144.44,144.43,6.10816168]
[1750929093521,6.9192,144.45,144.43,6.10816168]
[1750929093823,6.9192,144.45,144.44,6.10816168]
[1750929094125,6.9182,144.47,144.44,6.10816168]
[1750929094312,40.32,144.48,144.45,6.10816168]
[1750929094515,43.77137095,144.48,144.46,6.10816168]
[1750929094717,50.68897095,144.48,144.47,6.10816168]
[1750929095322,10.36897095,144.48,144.47,6.10816168]
[1750929096713,6.9027419,144.48,144.42,8.59040337]
[1750929096918,6.9027419,144.48,144.41,8.59040337]
[1750929096919,3.45137095,144.44,144.41,8.59040337]
[1750929097118,3.45137095,144.44,144.4,8.59040337]
[1750929097317,3.45137095,144.44,144.39,48.89040337]
[1750929097618,6.9203,144.43,144.4,6.9213]
[1750929098124,3.45137095,144.44,144.39,48.89040337]
[1750929098922,6.9202,144.43,144.4,6.9214]
[1750929100328,10.37107095,144.44,144.41,6.9209]
[1750929100514,3.45137095,144.45,144.4,8.59040337]
[1750929101016,3.45137095,144.45,144.4,15.51150337]
[1750929101925,3.45137095,144.45,144.39,40.3]
[1750929101926,6.9198,144.44,144.41,15.51130337]
[1750929102514,6.9193,144.45,144.42,6.9205]
[1750929102714,3.45137095,144.46,144.42,8.59040337]
[1750929102922,3.45137095,144.46,144.39,52.34177432]
[1750929103126,6.9192,144.45,144.42,6.9202]
[1750929104227,6.9192,144.45,144.43,6.9199]
[1750929104929,6.9192,144.45,144.42,6.9202]
[1750929105626,6.9192,144.45,144.43,6.9199]
[1750929106226,10.37017095,144.46,144.44,8.59040337]
[1750929106425,10.37017095,144.46,144.44,15.50990337]
[1750929106733,6.9181,144.47,144.42,8.59040337]
[1750929106927,6.9181,144.47,144.42,10.92560337]
[1750929107225,3.45137095,144.48,144.44,6.9192]
[1750929107917,6.9183,144.47,144.44,6.9192]
[1750929108727,6.9183,144.47,144.45,6.05464069]
[1750929108931,6.9183,144.47,144.46,6.05464069]
[1750929120038,10.36917095,144.48,144.46,6.05464069]
[1750929120244,10.36917095,144.48,144.47,6.05464069]
[1750929122937,6.9193,144.45,144.42,9.2554]
[1750929123341,6.9195,144.44,144.42,9.2554]
[1750929123541,6.9195,144.44,144.42,2.3352]
[1750929124541,6.9195,144.44,144.42,9.2557]
[1750929124748,6.9195,144.44,144.43,6.19936183]
[1750929125543,3.45137095,144.46,144.43,6.19936183]
[1750929125740,3.45137095,144.46,144.44,6.19936183]
[1750929125945,3.45137095,144.46,144.45,6.19936183]
[1750929126147,10.36987095,144.46,144.45,6.19936183]
[1750929126949,10.36786837,144.46,144.45,6.19936183]
[1750929128955,6.9185,144.46,144.45,6.19936183]
[1750929129148,6.9185,144.46,144.45,14.78974583]
[1750929129452,6.9185,144.46,144.45,6.19936183]
[1750929130250,10.36786837,144.46,144.45,6.19936183]
[1750929130852,39.4,144.47,144.45,14.78974583]
[1750929131052,39.4,144.47,144.46,6.19936183]
[1750929131247,10.36696837,144.48,144.46,6.19936183]
[1750929131452,10.36696837,144.48,144.47,14.8131228]
[1750929131851,39.4,144.5,144.47,14.8131228]
[1750929132052,39.4,144.5,144.48,14.8131228]
[1750929132260,42.84749215,144.5,144.49,14.8131228]
[1750929132552,49.76409215,144.5,144.49,14.8131228]
[1750929132758,49.76409215,144.5,144.49,6.19936183]
[1750929133861,49.76409215,144.5,144.49,14.8131228]
[1750929134257,49.76409215,144.5,144.49,6.19936183]
[1750929134559,49.76409215,144.5,144.49,14.82067502]
[1750929134956,49.76409215,144.5,144.49,6.19936183]
[1750929135153,6.9176,144.48,144.47,4.29627502]
[1750929135355,3.44749215,144.48,144.44,12.885576]
[1750929136157,3.44749215,144.46,144.44,12.885576]
[1750929136351,6.919,144.45,144.43,12.885576]
[1750929136556,3.44749215,144.46,144.43,12.885576]
[1750929136862,3.44749215,144.46,144.42,6.9203]
[1750929137249,6.9193,144.45,144.42,6.9203]
[1750929137457,3.44749215,144.46,144.41,6.9205]
[1750929138053,6.879,144.49,144.4,46.3213]
[1750929138054,6.92,144.43,144.4,46.3213]
[1750929138458,3.44749215,144.44,144.4,39.4]
[1750929138663,10.36739215,144.44,144.41,6.9207]
[1750929138861,10.36739215,144.44,144.39,4.5355]
[1750929139165,10.36739215,144.44,144.39,17.47631501]
[1750929139362,6.9201,144.43,144.4,6.9211]
[1750929140464,10.36719215,144.44,144.41,6.9209]
[1750929140653,3.44749215,144.44,144.39,17.47631501]
[1750929141053,6.9207,144.42,144.39,24.39801501]
[1750929141264,3.44749215,144.44,144.39,4.5355]
[1750929141965,6.9205,144.42,144.4,6.9212]
[1750929142166,3.44749215,144.44,144.4,6.9212]
[1750929142367,6.9205,144.42,144.39,9.1642]
[1750929142972,6.9205,144.42,144.4,12.94099142]
[1750929144258,6.9205,144.42,144.39,19.86269142]
[1750929144567,6.92,144.43,144.4,19.86219142]
[1750929144768,3.44749215,144.44,144.4,12.94099142]
[1750929145264,10.36729215,144.44,144.41,19.86169142]
[1750929145454,42.84749215,144.46,144.42,12.94099142]
[1750929145960,49.76639215,144.46,144.43,6.9198]
[1750929146265,36.79470614,144.46,144.43,6.9198]
[1750929146666,36.79470614,144.46,144.44,6.9194]
[1750929146868,36.79470614,144.46,144.42,12.94099142]
[1750929147053,29.87580614,144.46,144.42,12.94099142]
[1750929147253,29.87580614,144.46,144.43,6.18691508]
[1750929147457,29.87580614,144.46,144.44,6.18691508]
[1750929147665,36.79430614,144.46,144.45,6.18691508]
[1750929148062,6.9205,144.42,144.4,12.94099142]
[1750929148262,29.87580614,144.46,144.4,12.94099142]
[1750929148263,29.87580614,144.46,144.41,6.18747685]
[1750929148463,3.44749215,144.43,144.39,19.86269142]
[1750929148764,3.44749215,144.43,144.41,12.94099142]
[1750929149069,6.9207,144.42,144.41,12.94099142]
[1750929149460,10.36769215,144.43,144.41,12.94099142]
[1750929149764,3.44749215,144.43,144.41,12.94099142]
[1750929149967,3.44749215,144.43,144.42,12.94099142]
[1750929150168,10.36749215,144.43,144.41,12.94099142]
[1750929150370,3.44749215,144.43,144.42,12.94099142]
[1750929150668,3.44749215,144.45,144.38,2.4472]
[1750929150870,3.44749215,144.45,144.43,12.93774847]
[1750929151166,10.36529215,144.48,144.45,6.919]
[1750929151466,10.36529215,144.48,144.46,12.93554105]
[1750929151668,3.44749215,144.48,144.46,12.93554105]
[1750929152371,6.9183,144.47,144.45,12.93554105]
[1750929152666,3.44749215,144.48,144.45,12.93554105]
[1750929152859,6.9188,144.46,144.43,19.85504105]
[1750929153466,3.44749215,144.48,144.43,12.93554105]
[1750929153666,3.44749215,144.48,144.44,12.93554105]
[1750929154260,3.44749215,144.48,144.43,12.93554105]
[1750929154463,6.9185,144.47,144.44,6.9193]
[1750929155477,3.44749215,144.48,144.43,12.93554105]
[1750929155677,3.44749215,144.48,144.44,12.93554105]
[1750929155871,10.36529215,144.48,144.45,6.9188]
[1750929156376,6.9185,144.47,144.44,19.85484105]
[1750929156678,3.44749215,144.48,144.44,19.85484105]
[1750929156972,3.44749215,144.46,144.42,12.93554105]
[1750929157178,3.44749215,144.46,144.41,9.3377]
[1750929157376,6.92,144.44,144.41,9.3377]
[1750929157674,3.44992637,144.45,144.41,2.417]
[1750929157972,3.44992637,144.43,144.38,11.6825]
[1750929158370,6.9216,144.4,144.38,4.7604]
[1750929158972,3.44992637,144.41,144.38,17.69735869]
[1750929159677,3.44992637,144.41,144.38,4.7604]
[1750929159970,3.44992637,144.41,144.37,12.93695869]
[1750929160177,3.44992637,144.41,144.36,6.9231]
[1750929160178,3.44992637,144.41,144.38,6.07025831]
[1750929160473,3.44992637,144.41,144.39,6.07025831]
[1750929160669,3.44992637,144.39,144.34,17.74605869]
[1750929160873,3.44992637,144.37,144.35,6.06844759]
[1750929161066,7.96153306,144.4,144.36,6.06844759]
[1750929161269,3.44992637,144.4,144.38,6.46646419]
[1750929161477,38.36,144.41,144.32,51.29695869]
[1750929161677,38.36,144.41,144.33,6.9246]
[1750929161977,38.36,144.41,144.32,51.29695869]
[1750929162167,10.37262637,144.38,144.32,51.29695869]
[1750929162770,3.44992637,144.38,144.32,51.29695869]
[1750929162970,3.44992637,144.38,144.34,12.93695869]
[1750929163579,10.3741827,144.4,144.34,12.93695869]
[1750929163879,38.36,144.41,144.36,12.93695869]
[1750929164066,38.36,144.41,144.38,6.9223]
[1750929164269,38.36,144.41,144.36,12.93695869]
[1750929164467,3.4524827,144.4,144.35,17.51845869]
[1750929164877,3.4524827,144.4,144.36,12.93695869]
[1750929165278,10.3740827,144.4,144.39,8.60092424]
[1750929166877,45.2811,144.41,144.39,8.60092424]
[1750929167080,38.36,144.41,144.39,8.60092424]
[1750929167281,3.4524827,144.42,144.4,8.60092424]
[1750929167675,10.3731827,144.42,144.4,8.60092424]
[1750929167981,3.4524827,144.42,144.4,8.60092424]
[1750929168174,3.4524827,144.42,144.4,15.52232424]
[1750929168788,3.4524827,144.42,144.4,8.60092424]
[1750929169178,3.4524827,144.42,144.39,8.60092424]
[1750929169478,3.4524827,144.4,144.39,8.60092424]
[1750929169673,3.4524827,144.4,144.38,8.60092424]
[1750929170083,6.9219,144.39,144.38,8.60092424]
[1750929170283,3.4524827,144.4,144.37,8.60092424]
[1750929170787,6.9224,144.38,144.37,8.60092424]
[1750929170989,3.4524827,144.38,144.35,13.18242424]
[1750929171580,6.9231,144.37,144.35,8.60092424]
[1750929171782,6.9231,144.37,144.34,15.52492424]
[1750929172586,3.4524827,144.38,144.34,8.60092424]
[1750929172786,3.4524827,144.38,144.33,53.68532424]
[1750929172988,3.4524827,144.38,144.33,15.52532424]
[1750929173381,6.9233,144.36,144.34,5.91290472]
[1750929173681,6.9233,144.36,144.35,5.91290472]
[1750929175088,6.9231,144.37,144.35,5.91290472]
[1750929175283,6.9231,144.37,144.36,5.91290472]
[1750929176686,10.37620764,144.37,144.29,12.93695869]
[1750929176897,3.45620764,144.3,144.26,12.93695869]
[1750929177192,3.45620764,144.32,144.24,12.93695869]
[1750929177193,6.9277,144.27,144.24,12.93695869]
[1750929177377,3.45620764,144.28,144.22,7.1225]
[1750929177583,6.9295,144.24,144.22,7.1225]
[1750929177791,3.45620764,144.26,144.22,7.1225]
[1750929177992,2.4005,144.31,144.22,7.1225]
[1750929178181,3.45874334,144.24,144.22,4.7516]
[1750929178384,2.4005,144.31,144.22,4.7516]
[1750929178681,38.18,144.32,144.22,11.6814]
[1750929178882,3.45874334,144.31,144.23,3.45874334]
[1750929179088,2.2654,144.35,144.24,38.18]
[1750929179391,3.45874334,144.32,144.25,6.9283]
[1750929179693,3.45874334,144.32,144.22,4.7516]
[1750929179694,6.928,144.27,144.22,11.6814]
[1750929179892,3.45874334,144.26,144.22,4.7516]
[1750929180386,643.88,144.25,144.03,45.66]
[1750929180594,3.4622162,144.12,144.04,5.9005162]
[1750929180790,52.44,144.2,144.05,6.9378]
[1750929181092,3.4622162,144.12,144.03,45.66]
[1750929181390,3.4622162,144.12,144.06,6.9377]
[1750929181586,3.4622162,144.1,144.03,45.66]
[1750929182187,3.46664798,144.07,144.03,45.66]
[1750929182393,5.77943413,144.08,144.03,52.599]
[1750929182583,5.77943413,144.06,144.01,2.4383]
[1750929182788,54.7563,144.14,143.88,5.78596217]
[1750929182789,5.78596217,144.02,143.88,5.78596217]
[1750929183093,5.78596217,144.1,143.94,1.20824943]
[1750929183094,5.78596217,143.98,143.94,1.20824943]
[1750929183293,52.48,144.01,143.89,5.20951702]
[1750929183493,5.78551293,144.0,143.92,52.48]
[1750929183687,57.058,144.05,143.92,52.48]
[1750929183994,52.48,144.09,143.96,52.48]
[1750929184293,5.78551293,144.06,143.97,11.44867413]
[1750929184586,52.48,144.13,143.98,8.19271293]
[1750929184789,2.2429,144.15,144.01,5.77831427]
[1750929185095,5.77831427,144.14,144.05,5.77831427]
[1750929185288,5.77831427,144.16,144.07,5.77831427]
[1750929185487,56.8,144.17,144.07,56.8]
[1750929185488,5.77272927,144.17,144.07,56.8]
[1750929185790,2.2429,144.2,144.07,56.8]
[1750929185986,56.8,144.22,144.1,5.77272927]
[1750929186182,56.8,144.22,144.08,2.2385]
[1750929186183,56.8,144.22,144.12,5.77272927]
[1750929186386,6.9297,144.23,144.17,6.9323]
[1750929186582,5.77272927,144.2,144.11,4.4767]
[1750929186791,5.77272927,144.18,144.11,4.4767]
[1750929186987,6.9315,144.19,144.11,4.4767]
[1750929187185,5.77272927,144.2,144.11,4.4767]
[1750929187186,5.77272927,144.18,144.11,4.4767]
[1750929187394,5.77396455,144.15,144.11,2.2338]
[1750929187999,5.77396455,144.15,144.09,6.9359]
[1750929188189,5.77396455,144.15,144.08,657.7785]
[1750929188786,5.77396455,144.15,144.08,600.9585]
[1750929189396,12.70746455,144.15,144.09,6.9359]
[1750929189590,6.9335,144.15,144.08,600.9585]
[1750929189795,12.70746455,144.15,144.08,600.9585]
[1750929189991,6.9335,144.15,144.08,600.9585]
[1750929190192,5.77396455,144.15,144.11,6.9353]
[1750929190391,5.77396455,144.15,144.08,600.9585]
[1750929190989,5.77396455,144.13,144.08,2.2385]
[1750929191403,5.77396455,144.13,144.07,2.3075]
[1750929191801,5.77396455,144.13,144.08,5.83769765]
[1750929192102,5.77396455,144.13,144.09,5.83769765]
[1750929192293,5.77396455,144.13,144.1,5.83769765]
[1750929192600,5.77396455,144.15,144.11,5.83769765]
[1750929192803,5.77396455,144.15,144.12,5.83769765]
[1750929193001,12.70776455,144.15,144.13,5.83769765]
[1750929193202,56.82,144.16,144.14,5.83769765]
[1750929193503,6.9329,144.16,144.15,5.83769765]
[1750929194003,12.70666455,144.17,144.15,5.83769765]
[1750929194204,5.77396455,144.17,144.16,5.83769765]
[1750929195703,12.70646455,144.17,144.16,5.83769765]
[1750929195902,5.77396455,144.17,144.07,2.3075]
[1750929196104,5.77396455,144.15,144.08,5.76519415]
[1750929196304,5.77396455,144.15,144.07,2.3075]
[1750929196505,5.77396455,144.17,144.08,5.77396455]
[1750929197004,5.77396455,144.17,144.07,15.18874717]
[1750929197206,5.77396455,144.17,144.07,2.3075]
[1750929197404,5.77396455,144.17,144.1,6.9355]
[1750929197601,5.77396455,144.17,144.07,2.3075]
[1750929198004,5.77396455,144.17,144.07,15.18874717]
[1750929198196,6.9337,144.15,144.1,6.9358]
[1750929198602,6.933,144.16,144.12,6.9348]
[1750929198802,5.77396455,144.17,144.08,12.88124717]
[1750929198997,5.77396455,144.17,144.08,18.65521172]
[1750929199203,6.9331,144.16,144.12,6.9346]
[1750929199705,6.9331,144.16,144.11,6.9352]
[1750929199905,6.9331,144.16,144.1,56.84]
[1750929200511,6.9334,144.15,144.12,6.9345]
[1750929200913,5.77396455,144.17,144.1,56.84]
[1750929201108,12.70676455,144.17,144.13,6.9341]
[1750929201710,6.9321,144.18,144.14,6.9338]
[1750929201901,5.77396455,144.19,144.1,59.0803]
[1750929202098,6.9337,144.15,144.11,6.935]
[1750929203111,6.934,144.14,144.1,59.0803]
[1750929203302,61.6043,144.2,144.1,59.0803]
[1750929203614,5.77266083,144.17,144.1,59.0803]
[1750929203815,67.37696083,144.2,144.1,59.0803]
[1750929204107,61.6043,144.2,144.1,59.0803]
[1750929204504,61.6043,144.2,144.11,5.77266083]
[1750929204705,6.932,144.18,144.13,6.9339]
[1750929204911,6.932,144.18,144.1,59.0803]
[1750929205307,6.932,144.18,144.13,6.9339]
[1750929205506,6.932,144.18,144.1,59.0803]
[1750929205708,6.9326,144.17,144.1,59.0803]
[1750929205903,5.77266083,144.19,144.13,6.9341]
[1750929206300,12.70546083,144.17,144.13,6.9341]
[1750929206708,12.70546083,144.17,144.1,59.0803]
[1750929206709,12.70546083,144.17,144.14,6.9338]
[1750929206907,67.37696083,144.2,144.1,64.85296083]
[1750929207407,6.9318,144.19,144.15,6.9331]
[1750929207612,67.37696083,144.2,144.15,6.9331]
[1750929207809,67.37696083,144.2,144.13,6.9341]
[1750929208015,5.77266083,144.18,144.1,59.0803]
[1750929208508,6.9319,144.19,144.14,6.9335]
[1750929208817,67.37696083,144.2,144.11,5.77266083]
[1750929209001,67.37696083,144.2,144.13,6.934]
[1750929209200,67.37696083,144.2,144.1,59.0803]
[1750929210011,6.9322,144.18,144.15,6.9334]
[1750929210213,67.37696083,144.2,144.11,5.77266083]
[1750929210708,61.6043,144.2,144.1,59.0803]
[1750929210914,56.84,144.2,144.13,5.7685254]
[1750929211115,5.7685254,144.22,144.13,5.7685254]
[1750929211415,5.77042471,144.2,144.1,59.0803]
[1750929211815,6.9329,144.17,144.13,6.934]
[1750929212012,5.77042471,144.2,144.13,6.934]
[1750929212616,5.77042471,144.2,144.14,6.9336]
[1750929213012,6.933,144.16,144.13,6.9342]
[1750929213516,59.5801,144.24,144.1,59.0803]
[1750929213517,6.9335,144.15,144.12,6.9345]
[1750929213816,5.77042471,144.18,144.1,57.3003]
[1750929214017,6.9334,144.16,144.12,6.9344]
[1750929214317,5.77042471,144.18,144.1,57.3003]
[1750929215515,5.77042471,144.19,144.1,57.3003]
[1750929215717,6.933,144.16,144.13,6.9341]
[1750929215915,5.77042471,144.19,144.1,57.3003]
[1750929216115,59.5801,144.24,144.1,57.3003]
[1750929216116,13.8597,144.23,144.1,57.3003]
[1750929216316,6.9342,144.14,144.11,6.9351]
[1750929216519,6.9342,144.14,144.1,57.3003]
[1750929216921,6.9342,144.14,144.11,6.9351]
[1750929217619,6.9342,144.14,144.12,6.9347]
[1750929217820,6.9336,144.15,144.12,6.9347]
[1750929218321,5.77288731,144.17,144.12,6.9347]
[1750929219024,55.06,144.19,144.13,6.9343]
[1750929219229,5.77288731,144.17,144.13,6.9343]
[1750929219525,6.9337,144.15,144.1,57.3003]
[1750929219717,5.77288731,144.17,144.11,6.935]
[1750929220024,5.77288731,144.15,144.07,10.75380201]
[1750929220222,5.77288731,144.15,144.07,2.3075]
[1750929220423,5.77288731,144.13,144.07,10.75380201]
[1750929220722,6.9351,144.12,144.07,2.3075]
[1750929220921,6.9351,144.12,144.09,6.9359]
[1750929221226,6.9354,144.11,144.09,6.9359]
[1750929221427,6.9354,144.11,144.09,15.38220201]
[1750929221624,5.77288731,144.13,144.1,6.9358]
[1750929221820,9.52483927,144.18,144.12,6.46705447]
[1750929222025,4.7312,144.18,144.16,6.46631834]
[1750929222227,6.9337,144.15,144.08,5.77288731]
[1750929222426,10.50408731,144.18,144.08,5.77288731]
[1750929222622,10.50408731,144.18,144.12,6.9348]
[1750929222824,10.50408731,144.18,144.08,5.77288731]
[1750929223025,5.77288731,144.16,144.07,8.08038731]